fUSD/lending_fUSD_20241020
["ID","MTS","AMOUNT","RATE_DAILY","PERIOD"]
[340545476,1729433441256,-583.33,0.00024999,2]
[340545478,1729433441266,-583.33,0.00024999,2]
[340545480,1729433441275,-583.33,0.00024999,2]
[340545482,1729433441283,-583.33,0.00024999,2]
[340545484,1729433441294,-583.33,0.00024999,2]
[340545486,1729433441304,-583.33,0.00024999,2]
[340545488,1729433441314,-583.33,0.00024999,2]
[340545490,1729433441323,-583.33,0.00024999,2]
[340545492,1729433441333,-583.33,0.00024999,2]
[340545494,1729433441343,-583.33,0.00024999,2]
[340545496,1729433441351,-583.33,0.00024999,2]
[340545497,1729433441361,-583.41,0.00024999,2]
[340545499,1729433441370,-11243.73203954,0.00025,2]
[340545502,1729433441383,-561.82928208,0.00025,2]
[340545504,1729433441396,-1117.71596049,0.00025,2]
[340545506,1729433441409,-25849.99264946,0.00025,2]
[340545509,1729433441425,-41438.89394294,0.00025,2]
[340545512,1729433441456,-500.0,0.00024931,2]
[340545514,1729433441466,-202.18568941,0.00025,2]
[340545516,1729433441477,-2598.83755617,0.00025,2]
[340545518,1729433441488,-22873.16564928,0.00025,2]
[340545521,1729433441499,-9203.11958714,0.00025,2]
[340545523,1729433441510,-2285.68501998,0.00025,2]
[340545525,1729433441520,-4307.56043718,0.00025,2]
[340545527,1729433441535,-875.01,0.00024931,2]
[340545529,1729433441545,-93817.47518098,0.00025,2]
[340545531,1729433441555,-11154.02902372,0.00025,2]
[340545533,1729433441566,-34062.10457233,0.00025,2]
[340545536,1729433441582,-4355.31238879,0.00025,2]
[340545538,1729433441595,-1490.48160631,0.00025,2]
[340545540,1729433441605,-517.05428338,0.00025,2]
[340545542,1729433441617,-4010.853084,0.00025,2]
[340545545,1729433441632,-2707.599995,0.00025,2]
[340545547,1729433441642,-498.25293264,0.00025,2]
[340545549,1729433441653,-1371.21562388,0.00025,2]
[340545551,1729433441664,-388.52572766,0.00025,2]
[340545553,1729433441676,-2933.56225702,0.00025,2]
[340545556,1729433441687,-18760.5019774,0.00025,2]
[340545558,1729433441698,-1729.69409163,0.00025,2]
[340545560,1729433441711,-1065.9793395,0.00025,2]
[340545562,1729433441722,-814.12845276,0.00025,2]
[340545564,1729433441733,-2061.78803888,0.00025,2]
[340545567,1729433441744,-7994.99398498,0.00025,2]
[340545569,1729433441755,-1094.47471903,0.00025,2]
[340545571,1729433441767,-8207.71589643,0.00025,2]
[340545573,1729433441777,-2520.65471775,0.00025,2]
[340545576,1729433441789,-312.3160075,0.00025,2]
[340545578,1729433441801,-678.03,0.00025,2]
[340545580,1729433441813,-536.7164364,0.00025,2]
[340545582,1729433441824,-703.655,0.00025,2]
[340545584,1729433441837,-670.7,0.00025,2]
[340545586,1729433441851,-298.57312534,0.00025,2]
[340545589,1729433441863,-170563.24024404,0.00025,2]
[340545591,1729433441875,-475.21517826,0.00025,2]
[340545593,1729433441887,-533.1,0.00025,2]
[340545595,1729433441898,-1633.56266826,0.00025,2]
[340545749,1729433443420,-165.84,0.000246,2]
[340545751,1729433443430,-875.01,0.00024931,2]
[340545753,1729433443440,-875.01,0.00024931,2]
[340545755,1729433443450,-875.01,0.00024931,2]
[340545757,1729433443461,-875.01,0.00024931,2]
[340545759,1729433443470,-875.01,0.00024931,2]
[340545761,1729433443480,-875.01,0.00024998,2]
[340545763,1729433443489,-875.01,0.00024999,2]
[340545765,1729433443498,-875.01,0.00024999,2]
[340545767,1729433443508,-3188.20609833,0.00025,2]
[340545769,1729433443519,-1063.8615191,0.00025,2]
[340545771,1729433443530,-6024.79110025,0.00025,2]
[340545773,1729433443541,-3237.07672759,0.00025,2]
[340545775,1729433443552,-3392.691366,0.00025,2]
[340545807,1729433443847,-339.29761598,0.00025,2]
[340545810,1729433443862,-875.01,0.00024999,2]
[340545812,1729433443871,-2549.18173,0.00025,2]
[340545814,1729433443884,-5971.00119524,0.00025,2]
[340545816,1729433443895,-1025184.51606409,0.00025,2]
[340545818,1729433443907,-507.9479485,0.00025,2]
[340546018,1729433446323,-1225.92496132,0.00024499,2]
[340546020,1729433446335,-904.40459341,0.00024499,2]
[340546023,1729433446351,-875.01,0.00024999,2]
[340546024,1729433446361,-875.01,0.00024999,2]
[340546026,1729433446370,-875.01,0.00024999,2]
[340546028,1729433446379,-875.01,0.00024999,2]
[340546029,1729433446389,-875.01,0.00024999,2]
[340546031,1729433446399,-875.01,0.00024999,2]
[340546033,1729433446408,-875.01,0.00024999,2]
[340546034,1729433446418,-875.01,0.00024999,2]
[340546036,1729433446427,-83.18354376,0.00025,2]
[340546037,1729433446438,-10679.72220069,0.00025,2]
[340546039,1729433446450,-41519.78479891,0.00025,2]
[340546042,1729433446471,-402.04,0.00024942,2]
[340546046,1729433446518,-401.89296198,0.00024942,2]
[340546047,1729433446527,-341.59507513,0.00024999,2]
[340546054,1729433446613,-533.41492487,0.00024999,2]
[340546056,1729433446624,-875.01,0.00024999,2]
[340546057,1729433446634,-341586.65828633,0.00025,2]
[340546059,1729433446645,-2017.41791185,0.00025,2]
[340546061,1729433446658,-1713.989211,0.00025,2]
[340546063,1729433446670,-1305.78224927,0.00025,2]
[340546064,1729433446681,-1740.74654837,0.00025,2]
[340546068,1729433446719,-31724.10560184,0.00025,2]
[340546183,1729433791657,157.56,0.00010959,2]
[340546187,1729434307813,392636.44,0.00011,2]
[340546188,1729434307843,864667.82458782,0.00011,2]
[340546189,1729434366716,1000.0,0.00027,60]
[340546190,1729434398391,-171.853505,0.00010745,2]
[340546191,1729434412682,-1015.2725224,0.00010745,2]
[340546192,1729434439154,-924.18045387,0.000108,2]
[340546193,1729434560106,-50.7682308,0.000108,2]
[340546194,1729434560132,-210.98,0.00010959,2]
[340546195,1729434560160,-37.48724428,0.00010973,2]
[340546219,1729434631527,-189.83163712,0.00010899,2]
[340546221,1729434631537,-189.83163712,0.000109,2]
[340546223,1729434631547,-189.83163712,0.000109,2]
[340546225,1729434631557,-150.0,0.00010963,2]
[340546226,1729434631567,-462.51275572,0.00010973,2]
[340546227,1729434631576,-150.0,0.00010999,2]
[340546228,1729434631585,-256.25022347,0.00010999,2]
[340546229,1729434631595,-15555.21060945,0.00011,2]
[340546230,1729434631606,-593.19034594,0.00011,2]
[340546231,1729434631619,-331124.74511461,0.00011,2]
[340546232,1729434631631,-3005.39853465,0.00011,2]
[340546233,1729434631642,-2693.34,0.00011,2]
[340546234,1729434631653,-9696.0,0.00011,2]
[340546235,1729434631692,-337.55473767,0.00011,2]
[340546236,1729434631703,-8245.92,0.00011,2]
[340546237,1729434631715,-263206.68522333,0.00011,2]
[340546238,1729434631726,-500.0,0.00011,2]
[340546239,1729434631807,-877.19624056,0.00011,2]
[340546240,1729434631818,-3099.91875805,0.00011,2]
[340546241,1729434631829,-368.7704374,0.00011,2]
[340546242,1729434631841,-2637.99999999,0.00011,2]
[340546301,1729434638204,-448.89210679,0.00011,2]
[340546302,1729434638215,-136276.63788615,0.00011,2]
[340546303,1729434638228,-104598.79475452,0.00011,2]
[340546304,1729434638239,-52376.17867984,0.00011,2]
[340546305,1729434638250,-245279.03116443,0.00011,2]
[340546306,1729434638261,-20692.3719441,0.00011,2]
[340546307,1729434638384,-13974.06516712,0.00011,2]
[340546308,1729434638395,-1008.01357761,0.00011,2]
[340546309,1729434638474,-1139.45926394,0.00011,2]
[340546310,1729434638486,-40420.35467897,0.00011,2]
[340546311,1729434638497,-1200.0,0.00011,2]
[340546312,1729434639237,-1349.45,0.00011,2]
[340546315,1729434639489,-2675.84309078,0.00011,2]
[340546317,1729434639500,-530.50322502,0.00011,2]
[340546318,1729434639516,-510.9874,0.00011,2]
[340546319,1729434639546,-556.6841012,0.00011,2]
[340546320,1729434639576,-1789.33327865,0.00011,2]
[340546321,1729434639687,-6695.4642,0.00011,2]
[340546322,1729434639699,-312.7034,0.00011,2]
[340546323,1729434639711,-3642.57914762,0.00011,2]
[340546324,1729434639723,-3933.36463944,0.00011,2]
[340546325,1729434639734,-4432.26839026,0.00011,2]
[340546326,1729434639746,-1091.78782268,0.00011,2]
[340546327,1729434639758,-2703.39999998,0.00011,2]
[340546328,1729434639917,-442.30640479,0.00011,2]
[340546329,1729434639932,-7062.84364601,0.00011,2]
[340546330,1729434640344,-671.21727097,0.00011,2]
[340546331,1729434640356,-2818.5,0.00011,2]
[340546332,1729434640368,-879.29743635,0.00011,2]
[340546333,1729434642619,-6040.00001,0.00011,2]
[340546334,1729434642633,-5750.5391324,0.00011,2]
[340546335,1729434642644,-5588.48944427,0.00011,2]
[340546336,1729434642655,-507.1881138,0.00011,2]
[340546337,1729434642666,-9497.11310897,0.00011,2]
[340546338,1729434642677,-7286.13343212,0.00011,2]
[340546339,1729434642689,-2645.6,0.00011,2]
[340546340,1729434642739,-5006.645,0.00011,2]
[340546341,1729434642824,-1992.45119143,0.00011,2]
[340546342,1729434642835,-2667.93932472,0.00011,2]
[340546343,1729434642846,-7474.65903825,0.00011,2]
[340546344,1729434642860,-33644.51898478,0.00011,2]
[340546345,1729434642873,-1427.38556508,0.00011,2]
[340546346,1729434642887,-25787.6520449,0.00011,2]
[340546569,1729434645564,-70940.89058399,0.00011,2]
[340546583,1729434645730,-6445.15857475,0.00011,2]
[340546585,1729434645742,-87946.23820787,0.00011,2]
[340546587,1729434645753,-16184.85409687,0.00011,2]
[340546593,1729434645820,-558.75611506,0.00011,2]
[340547496,1729434670883,300.0,0.00013899,120]
[340547497,1729434671063,300.0,0.00017259,120]
[340547498,1729434689494,-326.5512815,0.00010793,2]
[340547499,1729434962334,-305.9251,0.0001079,2]
[340547500,1729435035416,2031.48509409,0.000242,120]
[340547504,1729435111848,-283.977,0.0001078,2]
[340547505,1729435111870,-166.27185547,0.0001078,2]
[340547511,1729435147253,-332.7775,0.0001078,2]
[340547515,1729435223467,150.0,0.0001,2]
[340547516,1729435223489,100.0,0.0001,2]
[340547520,1729435624070,-3482.0,0.00033979,120]
[340547521,1729435624095,-4104.2784301,0.00033979,90]
[340547522,1729435624121,-154.63087475,0.00033979,30]
[340547523,1729435624146,-1326.02618655,0.00033979,120]
[340547524,1729435624170,-1083.14436986,0.00033979,30]
[340547525,1729435624195,-5345.14434658,0.00033979,30]
[340547526,1729435624220,-858.92173666,0.00033979,30]
[340547527,1729435624244,-678.40862641,0.00033979,30]
[340547528,1729435624268,-812.62804956,0.00033979,30]
[340547529,1729435624296,-158.07594147,0.00033979,120]
[340547530,1729435624320,-1200.0,0.00033979,120]
[340547531,1729435624344,-150.89894551,0.00033979,30]
[340547532,1729435624368,-152.85457468,0.00033979,120]
[340547533,1729435624392,-1416.43880967,0.00033979,120]
[340547534,1729435624416,-203.42956325,0.00033979,120]
[340547535,1729435624440,-1231.53910851,0.00033979,120]
[340547536,1729435624464,-162.94634209,0.00033979,31]
[340547537,1729435624488,-593.48909413,0.00033979,120]
[340547538,1729435624513,-221.86580706,0.00033979,30]
[340547539,1729435624539,-5088.06030364,0.00033979,120]
[340547540,1729435624563,-198.92354951,0.00033979,30]
[340547541,1729435624588,-792.92491424,0.00033979,120]
[340547542,1729435624612,-211.12256924,0.00033979,120]
[340547543,1729435624635,-150.39740063,0.00033979,120]
[340547544,1729435624658,-1233.20368689,0.00033979,120]
[340547545,1729435624682,-234.5964975,0.00033979,30]
[340547546,1729435624706,-5307.04071767,0.00033979,30]
[340547547,1729435624729,-235.26857308,0.00033979,30]
[340547548,1729435624753,-221.75904479,0.00033979,30]
[340547549,1729435624777,-216.9751521,0.00033979,30]
[340547550,1729435624804,-161.72821743,0.00033979,120]
[340547551,1729435624828,-4944.07796692,0.00033979,120]
[340547552,1729435624853,-538.15069817,0.00033979,30]
[340547553,1729435624882,-1013.99444175,0.00033979,30]
[340547554,1729435624905,-376.41228323,0.00033979,60]
[340547555,1729435624931,-1077.38709736,0.00033979,30]
[340547556,1729435624954,-256.0,0.00033979,120]
[340547557,1729435624979,-575.79202036,0.00033979,120]
[340547558,1729435625003,-2953829.46405865,0.00033979,30]
[340547559,1729435630413,-3000000.0,0.00033979,30]
[340547560,1729435631240,307.05672097,0.00013799,120]
[340547561,1729435636314,-8000000.0,0.00033979,30]
[340547562,1729435640392,-8000000.0,0.00033979,30]
[340547563,1729435643892,-8000000.0,0.00033979,30]
[340547564,1729435646720,-8000000.0,0.00033979,30]
[340547565,1729435649439,-8000000.0,0.00033979,30]
[340547566,1729435658887,-8000000.0,0.00033979,30]
[340547567,1729435661783,-8000000.0,0.00033979,30]
[340547568,1729435664692,-8000000.0,0.00033979,30]
[340547569,1729435667534,-8000000.0,0.00033979,30]
[340547570,1729435670365,-8000000.0,0.00033979,30]
[340547571,1729435678414,-8000000.0,0.00033979,30]
[340547572,1729435682228,-6046170.53594135,0.00033979,30]
[340547573,1729435682254,-39448.999993,0.00033979,120]
[340547574,1729435682278,-394.95949945,0.00033979,120]
[340547575,1729435682303,-328.76132626,0.00033979,120]
[340547576,1729435682329,-1626.76217063,0.00033979,60]
[340547577,1729435682355,-151.66216171,0.00033979,30]
[340547578,1729435682380,-620.57007709,0.00033979,120]
[340547579,1729435682405,-230.70093074,0.00033979,120]
[340547580,1729435682430,-1000.0,0.00033979,120]
[340547581,1729435682455,-189.87712893,0.00033979,120]
[340547582,1729435682479,-1520000.67852226,0.00033979,30]
[340547583,1729435682504,-7798.06222847,0.00033979,120]
[340547584,1729435682529,-1060.71252711,0.00033979,30]
[340547585,1729435682554,-200.0,0.00033979,120]
[340547586,1729435682584,-168.99136353,0.00033979,120]
[340547587,1729435682609,-3113.78,0.00033979,120]
[340547588,1729435682633,-472.17588153,0.00033979,120]
[340547589,1729435682656,-1002.5869,0.00033979,30]
[340547590,1729435682680,-346.15509519,0.00033979,30]
[340547591,1729435682704,-967.02774679,0.00033979,120]
[340547592,1729435682727,-269.8794634,0.00033979,60]
[340547593,1729435682750,-616.35875579,0.00033979,30]
[340547594,1729435682775,-156.94791557,0.00033979,120]
[340547595,1729435682798,-153.44756857,0.00033979,120]
[340547596,1729435682822,-240.5550344,0.00033979,120]
[340547597,1729435682847,-161.0,0.00033979,120]
[340547598,1729435682871,-268.48139302,0.00033979,120]
[340547599,1729435682901,-8780.95436852,0.00033979,120]
[340547600,1729435682928,-224.75179254,0.00033979,120]
[340547601,1729435682951,-1139.30582738,0.00033979,30]
[340547602,1729435682979,-255.08654657,0.00033979,120]
[340547603,1729435683002,-1207.7199765,0.00033979,120]
[340547604,1729435683029,-4419.0,0.00033979,120]
[340547605,1729435683061,-861.0,0.00033979,120]
[340547606,1729435683093,-69294.6893232,0.00033979,30]
[340547607,1729435683119,-490.59771972,0.00033979,120]
[340547608,1729435683144,-200.0,0.00033979,30]
[340547609,1729435683169,-150.0,0.00033979,30]
[340547610,1729435683195,-552.2799003,0.00033979,120]
[340547611,1729435683220,-1000.0,0.00033979,30]
[340547612,1729435683246,-1000.0,0.00033979,30]
[340547613,1729435683274,-1000.0,0.00033979,30]
[340547614,1729435683298,-1000.0,0.00033979,30]
[340547615,1729435683327,-1000.0,0.00033979,30]
[340547616,1729435683354,-1000.0,0.00033979,30]
[340547617,1729435683382,-1000.0,0.00033979,30]
[340547618,1729435683409,-1000.0,0.00033979,30]
[340547619,1729435683435,-1000.0,0.00033979,30]
[340547620,1729435683461,-1000.0,0.00033979,30]
[340547621,1729435683488,-1000.0,0.00033979,30]
[340547622,1729435683515,-1000.0,0.00033979,30]
[340547623,1729435683541,-1000.0,0.00033979,30]
[340547624,1729435683569,-1000.0,0.00033979,30]
[340547625,1729435683599,-1000.0,0.00033979,30]
[340547626,1729435683625,-1000.0,0.00033979,30]
[340547627,1729435683651,-1000.0,0.00033979,30]
[340547628,1729435683681,-1000.0,0.00033979,30]
[340547629,1729435683710,-1000.0,0.00033979,30]
[340547630,1729435683737,-1000.0,0.00033979,30]
[340547631,1729435683763,-1000.0,0.00033979,30]
[340547632,1729435683790,-1000.0,0.00033979,30]
[340547633,1729435683815,-1000.0,0.00033979,30]
[340547634,1729435683843,-1000.0,0.00033979,30]
[340547635,1729435683869,-1890.657277,0.00033979,30]
[340547636,1729435683900,-1000.0,0.00033979,120]
[340547637,1729435683930,-567.44177782,0.00033979,120]
[340547638,1729435683957,-156.908401,0.00033979,40]
[340547639,1729435707243,-550.0,0.00010542,2]
[340547640,1729435794408,-150.0,0.00010579,2]
[340547641,1729435810841,300.0,0.00013899,120]
[340547642,1729435811201,300.0,0.00015545,120]
[340547643,1729435811374,307.05672097,0.00016832,120]
[340547650,1729435831712,-475.51709384,0.00010799,2]
[340547651,1729435831721,-200.31290616,0.000108,2]
[340547652,1729435831755,-275.20418767,0.000108,2]
[340547653,1729435831765,-168.669139,0.00010844,2]
[340547654,1729435831774,-230.23219333,0.00010899,2]
[340547655,1729435831794,-69.76780667,0.00010899,2]
[340547656,1729435831803,-179.81498284,0.000109,2]
[340547657,1729435831813,-675.2984,0.000109,2]
[340547658,1729435831822,-1003.5463,0.000109,2]
[340547659,1729435831833,-1932.31867147,0.000109,2]
[340547660,1729435831844,-2303.13893723,0.000109,2]
[340547661,1729435831863,-50.59251753,0.000109,2]
[340547662,1729435831872,-170.64,0.00010959,2]
[340547663,1729435831882,-3862.5,0.00010959,2]
[340547664,1729435831891,-150.0,0.00010999,2]
[340547665,1729435831900,-133419.41030454,0.00011,2]
[340547666,1729435831912,-441.93854479,0.00011,2]
[340547667,1729435831927,-431.36387479,0.00011,2]
[340547668,1729435831939,-2977.63233919,0.00011,2]
[340547669,1729435831952,-1151.55012815,0.00011,2]
[340547670,1729435831964,-1007.07587274,0.00011,2]
[340547671,1729435831976,-471.9509302,0.00011,2]
[340547672,1729435831992,-791.24822385,0.00011,2]
[340547673,1729435832009,-494.60842309,0.00011,2]
[340547674,1729435832029,-365.06759219,0.00011,2]
[340547701,1729435838313,-427.42660856,0.000108,2]
[340547703,1729435838325,-48.09048527,0.000108,2]
[340547705,1729435838335,-7053.10697456,0.00011,2]
[340547707,1729435838346,-3233.48052235,0.00011,2]
[340547710,1729435838358,-1007.08593606,0.00011,2]
[340547712,1729435838370,-1070.70831661,0.00011,2]
[340547716,1729435839136,-1706.22595138,0.00011,2]
[340547717,1729435839237,-71823.98914464,0.00011,2]
[340547718,1729435839248,-94979.06337072,0.00011,2]
[340547719,1729435839260,-6950.13472373,0.00011,2]
[340547720,1729435839271,-6155.10305288,0.00011,2]
[340547721,1729435839282,-442.68556641,0.00011,2]
[340547724,1729435839820,-9818.59999993,0.00011,2]
[340547725,1729435839833,-2154.95,0.00011,2]
[340547726,1729435839845,-1859.7569693,0.00011,2]
[340547727,1729435839878,-647.797892,0.00011,2]
[340547728,1729435839940,-611.83066081,0.00011,2]
[340547729,1729435839953,-2109.62849305,0.00011,2]
[340547730,1729435839966,-580.62479608,0.00011,2]
[340547731,1729435839978,-1470.0,0.00011,2]
[340547732,1729435839998,-5169.12813013,0.00011,2]
[340547733,1729435840010,-5867.0192707,0.00011,2]
[340547734,1729435840021,-3404.39519999,0.00011,2]
[340547735,1729435840034,-406.7955218,0.00011,2]
[340547736,1729435840045,-969.70411206,0.00011,2]
[340547737,1729435840066,-324.82004538,0.00011,2]
[340547743,1729435842765,-6009.99999,0.00011,2]
[340547745,1729435842808,-1190.7452539,0.00011,2]
[340547746,1729435842821,-625.78383673,0.00011,2]
[340547747,1729435842847,-2865.81931308,0.00011,2]
[340547748,1729435842859,-2136629.56254709,0.00011,2]
[340547749,1729435842886,-9792.47407275,0.00011,2]
[340547750,1729435842897,-5722.24100985,0.00011,2]
[340547751,1729435842909,-2710.09999995,0.00011,2]
[340547752,1729435842923,-28546.6046542,0.00011,2]
[340547753,1729435842935,-13568.50261232,0.00011,2]
[340547754,1729435843062,-3731.29444042,0.00011,2]
[340547755,1729435843074,-11227.40183633,0.00011,2]
[340547756,1729435843085,-273.95898522,0.00011,2]
[340547757,1729435843097,-314.66536752,0.00011,2]
[340547758,1729435843109,-397.8544895,0.00011,2]
[340547791,1729435845665,-77712.98336635,0.00011,2]
[340547793,1729435845704,-2674.57636298,0.00011,2]
[340547794,1729435845834,-377.0320002,0.00011,2]
[340547795,1729435845847,-1340.44999999,0.00011,2]
[340547796,1729435845966,-1963.89181176,0.00011,2]
[340547797,1729435845977,-339.59715371,0.00011,2]
[340547798,1729435845989,-13480.3,0.00011,2]
[340547799,1729435846000,-6657.6305184,0.00011,2]
[340547800,1729435846011,-92407.59464401,0.00011,2]
[340547801,1729435846023,-9347.75051587,0.00011,2]
[340547802,1729435846034,-894.42301681,0.00011,2]
[340547803,1729435846044,-476.39767763,0.00011,2]
[340547804,1729435846055,-616.42275296,0.00011,2]
[340547805,1729435846066,-592.24144725,0.00011,2]
[340547806,1729435846078,-1019.59748543,0.00011,2]
[340547807,1729435846092,-416.52325546,0.00011,2]
[340547813,1729436011258,30947.1621418,0.0001,2]
[340547814,1729436072963,1000.0,0.00027,60]
[340547819,1729436578220,500.0,0.000102,3]
[340547820,1729436580409,1100.0,0.000103,3]
[340547821,1729436582531,1700.0,0.000104,3]
[340547822,1729436584672,2300.0,0.000105,3]
[340547823,1729436586794,2900.0,0.000106,3]
[340547824,1729436588952,500.0,0.000107,3]
[340547825,1729436591071,500.0,0.000108,3]
[340547826,1729436593238,500.0,0.000109,3]
[340547827,1729436625864,-1947.423,0.00010489,2]
[340547828,1729436625885,-227.182,0.0001078,2]
[340547829,1729436625906,-173.55472767,0.000109,2]
[340547830,1729436625926,-167.26,0.00010959,2]
[340547831,1729436625949,-202.97887006,0.0001099,2]
[340547832,1729436625969,-150.0,0.00010999,2]
[340547833,1729436625990,-500.0,0.00010999,2]
[340547834,1729436626010,-466.71206367,0.00010999,2]
[340547835,1729436626035,-36664.8893386,0.00011,2]
[340547838,1729436785785,1366.4,0.00027,60]
[340547839,1729436847286,-441.54877469,0.000109,2]
[340547867,1729437031930,-4938.0734925,0.00010545,2]
[340547869,1729437031941,-9404.6539815,0.00010545,2]
[340547871,1729437031950,-3955.7082815,0.00010599,2]
[340547874,1729437031991,-1016.23598378,0.00010599,2]
[340547875,1729437032002,-685.22772,0.00010599,2]
[340547876,1729437032016,-311.75967326,0.00010599,2]
[340547877,1729437032152,-934.78984324,0.00010599,2]
[340547878,1729437032161,-788.907531,0.00010645,2]
[340547879,1729437032171,-163.59294037,0.00010699,2]
[340547880,1729437032180,-139.54304022,0.00010799,2]
[340547881,1729437032191,-10.45695978,0.00010799,2]
[340547882,1729437032200,-300.0,0.00010799,2]
[340547883,1729437032211,-7555.14735896,0.000108,2]
[340547884,1729437032220,-2063.22952318,0.0001089,2]
[340547885,1729437032233,-1662.77047682,0.0001089,2]
[340547886,1729437032243,-754.878304,0.000109,2]
[340547887,1729437032255,-321.71321862,0.000109,2]
[340547888,1729437032269,-398.63871435,0.000109,2]
[340547889,1729437032279,-150.0,0.000109,2]
[340547890,1729437032288,-157.56,0.00010959,2]
[340547891,1729437032297,-866.62,0.00010959,2]
[340547892,1729437032306,-479.02,0.00010959,2]
[340547893,1729437032316,-500.0,0.00010973,2]
[340547894,1729437032325,-598.51117691,0.00010973,2]
[340547895,1729437032334,-1000.0,0.00010999,2]
[340547896,1729437032343,-500.0,0.00010999,2]
[340547897,1729437032353,-198.76804265,0.00010999,2]
[340547898,1729437032362,-500.0,0.00010999,2]
[340547899,1729437032371,-500.0,0.00010999,2]
[340547900,1729437032381,-504.0254689,0.00010999,2]
[340547901,1729437032391,-427.76207771,0.00010999,2]
[340547902,1729437032400,-481.67204763,0.00010999,2]
[340547903,1729437032409,-500.0,0.00010999,2]
[340547904,1729437032418,-500.0,0.00010999,2]
[340547905,1729437032427,-342.99129701,0.00010999,2]
[340547907,1729437032439,-35.21566718,0.00010999,2]
[340547908,1729437032451,-464.78433282,0.00010999,2]
[340547909,1729437032461,-500.0,0.00010999,2]
[340547910,1729437032470,-500.0,0.00010999,2]
[340547911,1729437032480,-500.0,0.00010999,2]
[340547912,1729437032490,-500.0,0.00010999,2]
[340547913,1729437032501,-395.11462487,0.00010999,2]
[340547914,1729437032510,-500.0,0.00010999,2]
[340547915,1729437032524,-500.0,0.00010999,2]
[340547916,1729437032533,-500.0,0.00010999,2]
[340547917,1729437032542,-500.0,0.00010999,2]
[340547918,1729437032551,-1505.6,0.00010999,2]
[340547919,1729437032561,-13815.69527667,0.00011,2]
[340547920,1729437032573,-32000.0000006,0.00011,2]
[340547921,1729437032584,-68630.00000001,0.00011,2]
[340547922,1729437032595,-5605.5636,0.00011,2]
[340547923,1729437034019,150.0,0.0001,2]
[340547924,1729437034041,100.0,0.0001,2]
[340547930,1729437038684,-1368.88,0.00011,2]
[340547931,1729437038696,-1283.16595413,0.00011,2]
[340547932,1729437039333,-8790.08758187,0.00011,2]
[340547938,1729437039945,-15782.01799011,0.00011,2]
[340547940,1729437039957,-6756.00950947,0.00011,2]
[340547941,1729437039969,-6771.38509987,0.00011,2]
[340547942,1729437040049,-3240.0,0.00011,2]
[340547950,1729437040130,-2024.37733182,0.00011,2]
[340547958,1729437040208,-34249.99999999,0.00011,2]
[340547959,1729437040284,-861.41263393,0.00011,2]
[340547960,1729437040295,-2156.46264434,0.00011,2]
[340547969,1729437042979,-500.0,0.00010973,2]
[340547970,1729437042988,-138030.52483482,0.00011,2]
[340547971,1729437043001,-315.0,0.00011,2]
[340547973,1729437043033,-1364.52,0.00011,2]
[340547990,1729437043435,-1516.5810452,0.00011,2]
[340547991,1729437043450,-768364.32213617,0.00011,2]
[340547992,1729437043462,-507.1000005,0.00011,2]
[340547993,1729437043473,-44929.02542764,0.00011,2]
[340547996,1729437045925,-47630.47652576,0.00011,2]
[340547997,1729437045937,-631.02166246,0.00011,2]
[340547998,1729437045949,-3169.18151143,0.00011,2]
[340547999,1729437045960,-4336.80998317,0.00011,2]
[340548000,1729437045972,-2570.41893268,0.00011,2]
[340548001,1729437045993,-1516.08396786,0.00011,2]
[340548002,1729437046005,-300.0,0.00011,2]
[340548003,1729437046016,-719.23999998,0.00011,2]
[340548004,1729437046029,-615.67195522,0.00011,2]
[340548005,1729437046043,-3871.59662795,0.00011,2]
[340548006,1729437046054,-389.63124367,0.00011,2]
[340548007,1729437046146,-6344.71039224,0.00011,2]